bitfinex-derivatives/quotes_ETHF0:USTF0_20250320
["timestamp","ask_amount","ask_price","bid_price","bid_amount"]
[1742435156532,2.1111,2026.7,2026.6,0.78932]
[1742435157031,1.3218,2026.7,2026.4,3.2078]
[1742435157237,2.0131,2026.6,2026.5,0.78935]
[1742435157620,2.0131,2026.6,2026.5,2.13175]
[1742435158729,1.3218,2026.6,2026.5,2.13175]
[1742435160428,2.11112,2026.6,2026.5,1.3424]
[1742435161237,0.78936,2026.5,2026.4,3.2078]
[1742435161437,2.06366,2026.5,2026.4,3.2078]
[1742435161935,0.78948,2026.2,2026.1,0.00740649]
[1742435162437,7.35128,2026.2,2026.1,0.00740649]
[1742435163035,0.78959,2025.9,2025.8,40.8]
[1742435163236,0.78959,2025.9,2025.7,0.78966]
[1742435163434,1.2743,2025.8,2025.7,2.09546]
[1742435164138,2.06393,2025.8,2025.7,1.3058]
[1742435164340,0.78969,2025.7,2025.5,3.46732649]
[1742435164539,1.3973,2025.6,2025.5,3.46732649]
[1742435164834,1.3973,2025.6,2025.5,44.26732649]
[1742435165138,3.2078,2025.9,2025.8,0.78963]
[1742435165733,0.00740649,2026.0,2025.6,1.3625]
[1742435165932,0.00740649,2026.0,2025.9,0.78959]
[1742435166530,1.40470649,2026.0,2025.9,0.78959]
[1742435166736,2.19425649,2026.0,2025.8,0.7896]
[1742435166938,2.19425649,2026.0,2025.9,2.15209]
[1742435167138,0.00740649,2026.0,2025.9,2.15209]
[1742435167729,0.79695649,2026.0,2025.9,1.3625]
[1742435168329,0.00740649,2026.0,2025.9,2.15209]
[1742435169041,0.79695649,2026.0,2025.9,2.15209]
[1742435169240,0.00740649,2026.0,2025.9,2.15209]
[1742435169441,0.79695649,2026.0,2025.8,0.78962]
[1742435169643,0.79695649,2026.0,2025.8,2.11842]
[1742435169940,0.78959,2025.9,2025.8,1.3288]
[1742435170141,0.79698649,2026.0,2025.8,2.11842]
[1742435170437,0.79698649,2026.0,2025.6,0.7897]
[1742435170438,0.78963,2025.8,2025.6,0.7897]
[1742435170636,0.78963,2025.8,2025.6,2.1938]
[1742435171137,0.78967,2025.7,2025.6,1.4041]
[1742435171940,0.6913,2025.9,2025.6,2.1938]
[1742435172140,0.78967,2025.7,2025.6,1.4041]
[1742435172343,0.78967,2025.7,2025.6,2.19381]
[1742435172534,0.78967,2025.7,2025.6,1.4041]
[1742435173139,0.78971,2025.6,2025.5,1.31510649]
[1742435173334,0.78971,2025.6,2025.5,3.48325649]
[1742435173735,0.78971,2025.6,2025.5,2.69350649]
[1742435174245,1.48092,2025.9,2025.7,0.78965]
[1742435174541,0.00740649,2026.0,2025.9,0.78959]
[1742435174949,0.00740649,2026.0,2025.9,1.43829]
[1742435175244,0.00740649,2026.0,2025.9,2.13069]
[1742435179635,0.00740649,2026.0,2025.9,3.51509]
[1742435180444,0.6374,2026.6,2026.5,0.78936]
[1742435181848,1.42672,2026.6,2026.5,0.78936]
[1742435182441,3.33940649,2026.8,2026.4,1.3844]
[1742435182640,4.12867649,2026.8,2026.6,0.78931]
[1742435182849,4.12867649,2026.8,2026.7,1.3864]
[1742435183553,4.12864649,2026.8,2026.7,1.3864]
[1742435183853,0.00740649,2026.8,2026.7,2.17568]
[1742435184450,0.00740649,2026.8,2026.7,5.50668]
[1742435186251,0.00740649,2026.8,2026.7,4.7174]
[1742435186554,0.00740649,2026.8,2026.7,2.17568]
[1742435186854,0.00740649,2026.8,2026.5,6.54620649]
[1742435187056,1.30690649,2026.8,2026.7,0.78928]
[1742435187657,2.09614649,2026.8,2026.6,2.1517]
[1742435187851,1.30690649,2026.8,2026.7,0.78928]
[1742435188057,0.00740649,2026.8,2026.7,0.78928]
[1742435189452,0.00740649,2026.8,2026.7,1.46488]
[1742435189758,0.79664649,2026.8,2026.7,1.46488]
[1742435190845,0.00740649,2026.8,2026.7,1.46488]
[1742435191152,0.79664649,2026.8,2026.7,0.6756]
[1742435191551,0.78931,2026.7,2026.5,4.00454649]
[1742435191857,1.46411,2026.7,2026.5,4.00454649]
[1742435192057,1.46411,2026.7,2026.5,5.34774649]
[1742435192258,1.46411,2026.7,2026.6,1.3432]
[1742435192445,1.46411,2026.7,2026.5,0.79674649]
[1742435192647,1.46411,2026.7,2026.5,2.13994649]
[1742435192849,1.46411,2026.7,2026.6,0.78932]
[1742435193146,1.46411,2026.7,2026.6,1.3432]
[1742435193348,1.46411,2026.7,2026.6,2.13252]
[1742435194159,0.6748,2026.7,2026.6,2.13252]
[1742435194964,1.46408,2026.7,2026.6,2.13252]
[1742435195652,1.46408,2026.7,2026.6,1.3432]
[1742435196053,0.78932,2026.6,2026.5,1.31400649]
[1742435196271,0.78932,2026.6,2026.5,2.10336649]
[1742435196561,0.78932,2026.6,2026.5,0.00740649]
[1742435197661,4.12032,2026.6,2026.5,0.00740649]
[1742435198156,3.331,2026.6,2026.5,0.79676649]
[1742435198356,0.78932,2026.6,2026.5,0.00740649]
[1742435198558,4.67192,2026.7,2026.6,0.78932]
[1742435198860,0.6748,2026.7,2026.6,2.09932]
[1742435199052,4.83057649,2026.8,2026.7,0.78928]
[1742435199362,1.49957649,2026.8,2026.7,2.09928]
[1742435200261,0.78932,2026.6,2026.5,1.45703649]
[1742435200464,0.78932,2026.6,2026.5,43.54333649]
[1742435200861,0.78931,2026.7,2026.6,0.78931]
[1742435201057,0.78931,2026.7,2026.6,2.07561]
[1742435202156,0.78931,2026.7,2026.6,1.2863]
[1742435202357,0.78931,2026.7,2026.6,2.07562]
[1742435203060,0.00740649,2026.8,2026.7,0.78928]
[1742435203260,0.00740649,2026.8,2026.7,2.07558]
[1742435207963,1.3491,2027.1,2027.0,0.78917]
[1742435208569,1.3491,2027.1,2027.0,2.14197]
[1742435209773,2.13823,2027.1,2027.0,1.3528]
[1742435210071,2.13823,2027.1,2027.0,2.14197]
[1742435210072,1.3491,2027.1,2027.0,2.14197]
[1742435210462,2.13823,2027.1,2026.9,1.43569]
[1742435210768,2.77346,2027.1,2026.9,2.71139]
[1742435210964,1.3479,2027.0,2026.9,2.71139]
[1742435212267,2.13707,2027.0,2026.9,0.6465]
[1742435212565,0.7892,2026.9,2026.8,2.06492]
[1742435212769,0.7892,2026.9,2026.7,50.8858]
[1742435212770,0.78924,2026.8,2026.7,0.78928]
[1742435213979,2.09213,2026.9,2026.8,0.78924]
[1742435214164,0.78923,2026.9,2026.8,0.78924]
[1742435216769,0.78922,2026.9,2026.8,0.78922]
[1742435217276,7.173,2027.1,2027.0,0.78917]
[1742435217571,0.78924,2026.9,2026.7,0.78928]
[1742435217870,0.78928,2026.7,2026.6,5.34701]
[1742435218066,0.78928,2026.7,2026.6,6.70871]
[1742435218269,0.78928,2026.7,2026.6,6.01791]
[1742435218469,1.48258,2026.7,2026.6,6.01791]
[1742435219270,1.48258,2026.7,2026.6,4.65621]
[1742435219868,1.48258,2026.7,2026.5,2.09735649]
[1742435219869,0.78932,2026.6,2026.5,2.09735649]
[1742435220069,0.78932,2026.6,2026.5,1.30800649]
[1742435220567,0.6933,2026.7,2026.5,2.09733649]
[1742435220771,0.78932,2026.6,2026.5,2.09733649]
[1742435221171,0.78932,2026.6,2026.5,1.30800649]
[1742435221579,0.78932,2026.6,2026.5,0.00740649]
[1742435222277,0.78932,2026.6,2026.5,0.79673649]
[1742435222484,0.78932,2026.6,2026.5,0.00740649]
[1742435222778,0.78932,2026.6,2026.5,0.79676649]
[1742435224677,0.78932,2026.6,2026.5,2.20026649]
[1742435225276,0.78932,2026.6,2026.5,1.41090649]
[1742435225475,2.11172,2026.6,2026.5,0.00740649]
[1742435226066,2.11172,2026.6,2026.2,3.2078]
[1742435226067,0.78944,2026.3,2026.2,3.2078]
[1742435226377,4.0203,2026.4,2026.3,0.78944]
[1742435226571,1.3224,2026.4,2026.3,0.78944]
[1742435226881,1.3224,2026.4,2026.3,2.76444]
[1742435227472,3.33,2026.6,2026.5,0.78936]
[1742435227869,7.4426,2026.7,2026.6,0.78932]
[1742435228782,8.77,2026.7,2026.6,0.78932]
[1742435229279,1.3274,2026.7,2026.6,0.78932]
[1742435230277,3.2078,2026.8,2026.7,0.78928]
[1742435230483,3.2078,2026.8,2026.7,2.08358]
[1742435230682,3.2078,2026.8,2026.7,2.74148]
[1742435231572,1.3605,2026.8,2026.7,2.74148]
[1742435231773,0.78928,2026.7,2026.6,3.33]
[1742435231982,2.15468,2026.7,2026.6,0.78932]
[1742435232183,2.15468,2026.7,2026.5,1.3386]
[1742435232382,1.3605,2026.6,2026.5,2.12796]
[1742435232883,2.14982,2026.6,2026.5,2.12796]
[1742435233073,1.3605,2026.6,2026.5,2.12796]
[1742435234381,3.33,2026.9,2026.8,0.78924]
[1742435235288,1.3641,2027.0,2026.9,0.7892]
[1742435235488,2.15329,2027.0,2026.9,0.7892]
[1742435235691,3.56099,2027.0,2026.9,0.7892]
[1742435236083,3.56099,2027.0,2026.9,2.1747]
[1742435237198,3.56099,2027.0,2026.8,0.6563]
[1742435237199,2.7718,2027.0,2026.8,0.6563]
[1742435237491,0.78938,2026.5,2026.4,0.78939]
[1742435237792,0.78939,2026.5,2026.4,0.7894]
[1742435237993,0.7894,2026.4,2026.3,2.17451]
[1742435238291,0.78944,2026.3,2026.2,4.69716]
[1742435238486,2.18074,2026.3,2026.2,3.2078]
[1742435238685,0.78948,2026.2,2026.1,0.00740649]
[1742435238891,3.53578,2026.2,2026.1,0.00740649]
[1742435239279,3.53578,2026.2,2026.1,0.79692649]
[1742435239479,2.057,2026.2,2026.1,0.79692649]
[1742435240191,2.84648,2026.2,2026.1,0.79692649]
[1742435240588,2.18078,2026.2,2026.1,0.00740649]
[1742435240789,2.18078,2026.2,2026.1,0.79692649]
[1742435240989,2.18078,2026.2,2026.1,0.00740649]
[1742435241794,0.78955,2026.0,2025.9,3.2078]
[1742435241990,4.11955,2026.0,2025.9,3.2078]
[1742435242793,4.82265,2026.0,2025.9,3.2078]
[1742435244698,4.11955,2026.0,2025.9,3.2078]
[1742435245183,4.11955,2026.0,2025.9,4.544]
[1742435245496,3.33,2026.0,2025.9,5.33359]
[1742435245996,4.6736,2026.0,2025.9,5.33359]
[1742435246192,5.46315,2026.0,2025.9,4.544]
[1742435246498,4.6736,2026.0,2025.9,5.33359]
[1742435246692,5.46315,2026.0,2025.9,4.544]
[1742435246892,5.46315,2026.0,2025.9,1.3362]
[1742435247090,4.6736,2026.0,2025.7,0.00740649]
[1742435247285,0.78963,2025.8,2025.7,0.00740649]
[1742435247486,3.53522,2025.9,2025.7,0.00740649]
[1742435247686,1.4023,2025.8,2025.7,1.29060649]
[1742435247883,2.19193,2025.8,2025.7,1.29060649]
[1742435248299,2.19193,2025.8,2025.7,0.00740649]
[1742435249197,5.39973,2025.8,2025.7,0.00740649]
[1742435250596,8.72973,2025.8,2025.7,0.00740649]
[1742435250806,7.9401,2025.8,2025.7,0.00740649]
[1742435251697,8.72973,2025.8,2025.7,1.30450649]
[1742435251897,7.9401,2025.8,2025.7,1.30450649]
[1742435252095,1.4023,2025.8,2025.7,2.09417649]
[1742435252498,2.19193,2025.8,2025.7,0.00740649]
[1742435252696,6.08713,2025.8,2025.7,0.00740649]
[1742435256908,9.41813,2025.8,2025.7,0.00740649]
[1742435258404,7.9411,2025.8,2025.7,2.09607649]
[1742435258704,8.73073,2025.8,2025.7,2.09607649]
[1742435258908,1.4023,2025.8,2025.7,2.09607649]
[1742435259108,5.96,2026.0,2025.9,0.78959]
[1742435259401,7.3641,2026.0,2025.9,0.78959]
[1742435259809,8.15365,2026.0,2025.9,1.299]
[1742435260307,8.15365,2026.0,2025.8,2.17251]
[1742435260308,7.3641,2026.0,2025.8,1.3829]
[1742435260513,0.78963,2025.8,2025.7,0.00740649]
[1742435260703,4.12063,2025.8,2025.7,0.00740649]
[1742435260903,5.52473,2025.8,2025.7,0.00740649]
[1742435267314,0.78975,2025.5,2025.4,1.3574]
[1742435267515,4.12075,2025.5,2025.4,1.3574]
[1742435267813,0.78979,2025.4,2025.3,0.6549]
[1742435268015,0.78979,2025.4,2025.3,2.80883]
[1742435268016,1.2855,2025.4,2025.3,2.80883]
[1742435269315,1.2855,2025.4,2025.3,2.019]
[1742435269316,2.07529,2025.4,2025.3,2.019]
[1742435269621,2.07529,2025.4,2025.3,2.80883]
[1742435269622,1.2855,2025.4,2025.3,2.80883]
[1742435270821,9.7455,2025.4,2025.1,0.00740649]
[1742435271024,0.79009,2024.7,2024.5,2.89131]
[1742435271325,0.7901,2024.6,2024.5,2.1012]
[1742435271531,2.1833,2024.6,2024.5,2.1012]
[1742435271933,0.79019,2024.4,2024.0,3.2078]
[1742435272133,0.79019,2024.4,2024.3,1.41380649]
[1742435273036,0.79019,2024.4,2024.3,2.20402649]
[1742435273328,0.79019,2024.4,2024.3,1.41380649]
[1742435275222,0.79019,2024.4,2024.3,0.00740649]
[1742435277934,0.6545,2024.5,2024.3,0.00740649]
[1742435278226,4.12218,2024.4,2024.3,0.00740649]
[1742435278432,4.12218,2024.4,2024.3,2.02520649]
[1742435278629,4.12218,2024.4,2024.3,2.81542649]
[1742435278933,3.332,2024.4,2024.3,2.81542649]
[1742435279232,3.332,2024.5,2024.4,0.79018]
[1742435279434,3.332,2024.5,2024.4,2.11988]
[1742435279631,3.332,2024.5,2024.4,2.76308]
[1742435279936,3.2078,2024.6,2024.4,2.76308]
[1742435279937,3.2078,2024.6,2024.5,0.79014]
[1742435280128,3.2078,2024.6,2024.5,2.17694]
[1742435280330,3.9979,2024.6,2024.5,2.17694]
[1742435280830,3.2078,2024.6,2024.5,2.17694]
[1742435281033,4.12208,2024.7,2024.5,1.3868]
[1742435281235,0.7901,2024.6,2024.5,1.3868]
[1742435281828,0.7901,2024.6,2024.5,2.17694]
[1742435282136,0.7901,2024.6,2024.5,1.3868]
[1742435283337,0.00740649,2024.8,2024.7,0.79006]
[1742435283528,0.00740649,2024.8,2024.6,0.79007]
[1742435283728,0.79742649,2024.8,2024.7,1.9685]
[1742435285233,4.12942649,2024.8,2024.7,0.6791]
[1742435285432,0.7901,2024.6,2024.5,2.07954]
[1742435286029,0.7901,2024.6,2024.5,1.2894]
[1742435286325,0.7901,2024.6,2024.5,2.07954]
[1742435286734,0.7901,2024.6,2024.5,1.2894]
[1742435287533,1.3482,2024.7,2024.5,4.4972]
[1742435287736,2.13828,2024.7,2024.5,2.07951]
[1742435288034,2.13826,2024.7,2024.6,1.3905]
[1742435288635,0.79014,2024.5,2024.4,1.3423]
[1742435289634,1.4102,2024.6,2024.5,0.79014]
[1742435290042,2.2003,2024.6,2024.5,0.79014]
[1742435290229,2.2003,2024.6,2024.5,2.14244]
[1742435290436,2.2003,2024.6,2024.5,1.3523]
[1742435291339,0.79014,2024.5,2024.4,2.6946]
[1742435291534,2.20034,2024.5,2024.4,2.6946]
[1742435292037,0.79018,2024.4,2024.3,0.00740649]
[1742435292238,2.77248,2024.4,2024.3,0.00740649]
[1742435293449,5.96,2024.5,2024.4,0.79018]
[1742435293637,8.04524,2024.5,2024.4,2.6446]
[1742435293942,7.2551,2024.5,2024.4,3.43478]
[1742435294246,5.96,2024.5,2024.4,3.43478]
[1742435295246,6.75014,2024.5,2024.4,2.6446]
[1742435295545,8.09364,2024.5,2024.4,2.6446]
[1742435296048,11.30144,2024.5,2024.4,0.6776]
[1742435296339,3.342,2024.7,2024.5,0.79014]
[1742435296541,1.3435,2024.7,2024.6,1.4849]
[1742435296735,1.3435,2024.7,2024.6,2.8774]
[1742435297240,3.21520649,2024.8,2024.7,0.79006]
[1742435297446,0.00740649,2024.8,2024.7,2.18256]
[1742435300133,3.2078,2025.4,2024.7,4.7335]
[1742435300445,2.16194,2025.3,2025.1,0.78989]
[1742435300633,2.16194,2025.3,2025.2,2.6467]
[1742435300832,1.3721,2025.3,2025.2,3.43657]
[1742435301034,4.81427,2025.5,2025.2,3.43654]
[1742435301235,0.78983,2025.3,2025.2,2.6467]
[1742435301942,1.3369,2025.4,2025.2,2.6467]
[1742435302250,0.78983,2025.3,2025.2,2.6467]
[1742435302639,0.78983,2025.3,2024.9,44.79776]
[1742435302640,0.78993,2025.1,2024.9,44.92997]
[1742435302950,0.78998,2024.9,2024.7,1.44823]
[1742435303144,0.79002,2024.8,2024.7,0.6582]
[1742435303345,0.79001,2024.9,2024.7,0.6582]
[1742435303652,0.79001,2024.9,2024.7,1.44825]
[1742435303843,2.12691,2024.9,2024.8,1.9494]
[1742435304043,1.3369,2024.9,2024.8,2.73942]
[1742435304356,3.339,2025.0,2024.9,0.78998]
[1742435304550,0.78994,2025.0,2024.9,1.4072]
[1742435304751,2.06484,2025.0,2024.9,1.4072]
[1742435305340,0.78998,2024.9,2024.8,0.6637]
[1742435305547,1.2749,2024.9,2024.8,0.6637]
[1742435305939,3.2078,2025.1,2024.8,2.0709]
[1742435306148,4.4827,2025.1,2024.8,2.0709]
[1742435306347,5.27262,2025.1,2024.9,2.19717]
[1742435306647,5.27262,2025.1,2025.0,1.4072]
[1742435306952,5.27261,2025.1,2025.0,1.4072]
[1742435307152,4.4827,2025.1,2025.0,1.4072]
[1742435308244,5.27261,2025.1,2025.0,1.4072]
[1742435308447,0.78997,2025.0,2024.8,0.6637]
[1742435308641,2.15437,2025.0,2024.9,1.3236]
[1742435309043,1.3644,2025.0,2024.9,2.11358]
[1742435309850,3.2078,2025.1,2025.0,0.78994]
[1742435310049,4.5722,2025.1,2025.0,2.11354]
[1742435311853,1.3644,2025.1,2025.0,2.11354]
[1742435312652,9.1678,2025.4,2025.0,3.29846]
[1742435312849,3.2078,2025.4,2025.3,0.78983]
[1742435313853,3.2078,2025.4,2025.3,2.10523]
[1742435315252,4.5904,2025.4,2025.3,2.10523]
[1742435315647,0.78983,2025.3,2025.2,0.6945]
[1742435315844,0.78994,2025.0,2024.9,4.5669]
[1742435316047,0.78987,2025.2,2024.9,4.5669]
[1742435316243,1.3302,2025.1,2025.0,2.17664]
[1742435316853,0.78994,2025.0,2024.9,4.67757]
[1742435317045,2.12012,2025.1,2025.0,0.78994]
[1742435317245,0.78994,2025.0,2024.9,4.67756]
[1742435317453,2.12014,2025.0,2024.9,4.67756]
[1742435317654,1.3302,2025.0,2024.9,4.67756]
[1742435317950,2.12014,2025.0,2024.9,4.67756]
[1742435318357,1.3302,2025.0,2024.9,4.67756]
[1742435318562,1.3302,2025.0,2024.9,1.46976]
[1742435319251,1.3302,2025.0,2024.6,9.19334]
[1742435319252,1.3302,2025.0,2024.6,3.2078]
[1742435319553,1.4516,2024.9,2024.8,0.79002]
[1742435320042,0.6616,2024.9,2024.8,0.79002]
[1742435320450,2.0015,2024.9,2024.8,0.79002]
[1742435321849,1.3399,2024.9,2024.8,0.79002]
[1742435323257,1.3399,2024.9,2024.8,1.46302]
[1742435324161,4.0357,2025.2,2025.1,0.78991]
[1742435324952,0.7047,2025.2,2025.1,0.78991]
[1742435325649,2.0602,2025.2,2025.1,0.78991]
[1742435326559,2.8501,2025.2,2025.0,1.325]
[1742435326758,1.3555,2025.1,2025.0,2.11494]
[1742435328067,2.14541,2025.1,2025.0,2.11494]
[1742435328358,2.14541,2025.1,2025.0,0.78994]
[1742435329458,1.3555,2025.1,2025.0,0.78994]
[1742435329663,2.14541,2025.1,2024.9,3.2078]
[1742435329853,2.14541,2025.1,2025.0,0.78994]
[1742435330153,0.78991,2025.1,2025.0,0.78994]
[1742435331158,4.8256,2025.2,2025.1,0.78991]
[1742435331355,4.67732,2025.4,2025.2,0.78987]
[1742435331558,3.331,2025.3,2025.2,0.78987]
[1742435331753,3.2078,2025.4,2025.3,0.78983]
[1742435332861,3.2078,2025.4,2025.3,2.17893]
[1742435333462,0.00740649,2025.6,2025.5,0.78975]
[1742435334465,0.79711649,2025.6,2025.5,0.78975]
[1742435335470,0.78979,2025.4,2025.3,0.00740649]
[1742435336971,4.63489,2025.4,2025.3,0.00740649]
[1742435337159,5.81961,2025.4,2024.9,3.2078]
[1742435337356,3.331,2025.3,2024.9,3.2078]
[1742435337552,3.331,2025.3,2024.9,4.5573]
[1742435337752,0.78991,2025.1,2025.0,2.13942]
[1742435339963,0.7899,2025.2,2025.1,0.78989]
[1742435340270,0.78994,2025.0,2024.9,3.99776]
[1742435340860,0.78994,2025.0,2024.9,3.2078]
[1742435341460,0.78994,2025.0,2024.9,4.6034]
[1742435342269,0.78994,2025.0,2024.9,2.18558]
[1742435342465,3.9935,2025.1,2025.0,0.78994]
[1742435342667,3.9935,2025.1,2025.0,2.18554]
[1742435342866,3.331,2025.1,2025.0,2.18554]
[1742435343970,7.8386,2025.4,2025.0,1.3956]
[1742435344168,0.78984,2025.3,2025.2,0.78985]
[1742435344361,5.29741,2025.4,2025.3,0.78983]
[1742435344565,5.96,2025.5,2025.4,0.78979]
[1742435344761,6.74977,2025.5,2025.4,0.78979]
[1742435344957,0.78979,2025.4,2025.3,0.7898]
[1742435345463,6.74978,2025.5,2025.4,0.78979]
[1742435346170,5.96,2025.5,2025.4,0.78979]
[1742435346359,1.50114649,2025.6,2025.2,1.3138]
[1742435346560,1.2833,2025.5,2025.4,0.78979]
[1742435346764,1.2833,2025.5,2025.4,2.14429]
[1742435348773,0.00740649,2025.6,2025.5,0.78975]
[1742435348973,1.36270649,2025.6,2025.5,2.80115]
[1742435349674,2.15241649,2025.6,2025.5,2.80115]
[1742435349876,2.15241649,2025.6,2025.2,3.2078]
[1742435349877,1.36270649,2025.6,2025.2,3.2078]
[1742435350083,0.78987,2025.2,2025.1,0.6569]
[1742435350266,0.78987,2025.2,2025.1,1.44681]
[1742435350569,2.10727,2025.2,2025.1,2.77461]
[1742435350770,2.10727,2025.2,2025.1,1.9847]
[1742435350972,0.78991,2025.1,2025.0,0.78992]
[1742435351172,2.10731,2025.1,2025.0,0.78992]
[1742435351366,0.78994,2025.0,2024.9,1.3278]
[1742435351566,2.10734,2025.0,2024.9,2.11778]
[1742435352171,2.10734,2025.0,2024.9,1.3278]
[1742435352379,0.78998,2024.9,2024.8,6.11210649]
[1742435352570,2.10738,2024.9,2024.8,2.78210649]
[1742435353180,1.3174,2024.9,2024.8,2.78210649]
[1742435353976,2.13729,2025.2,2025.1,0.78989]
[1742435354281,2.13727,2025.2,2025.1,0.78989]
[1742435354578,1.3474,2025.2,2025.1,0.78989]
[1742435355175,6.5984,2025.5,2025.0,6.60945]
[1742435355374,1.3474,2025.3,2025.2,0.78987]
[1742435355571,1.3474,2025.3,2025.2,2.74657]
[1742435357765,2.13723,2025.3,2025.2,2.74657]
[1742435358579,2.13723,2025.3,2025.2,1.9567]
[1742435358774,2.13723,2025.3,2025.2,2.74657]
[1742435359078,0.78987,2025.2,2025.1,0.6706]
[1742435359281,2.15077,2025.2,2025.1,1.9892]
[1742435359573,2.15077,2025.2,2025.1,0.78991]
[1742435359777,1.3609,2025.2,2025.1,0.78991]
[1742435361177,0.6384,2025.5,2025.1,0.78991]
[1742435361178,0.6384,2025.5,2025.4,0.78979]
[1742435361478,2.78905,2025.5,2025.4,0.78979]
[1742435361879,1.9993,2025.5,2025.4,0.78979]
[1742435362377,1.9993,2025.5,2025.4,2.15759]
[1742435362582,1.3609,2025.5,2025.4,2.15759]
[1742435364076,3.21520649,2025.6,2025.5,0.78975]
[1742435364280,3.21520649,2025.6,2025.5,2.15755]
[1742435364883,4.58720649,2025.6,2025.5,2.15755]
[1742435367084,5.37691649,2025.6,2025.5,2.15755]
[1742435367788,4.58720649,2025.6,2025.5,2.15755]
[1742435368177,1.37940649,2025.6,2025.5,2.15755]
[1742435368378,2.16911649,2025.6,2025.5,2.15755]
[1742435368678,1.37940649,2025.6,2025.5,2.15755]
[1742435369389,2.16911649,2025.6,2025.5,2.15755]
[1742435369779,1.37940649,2025.6,2025.5,2.15755]
[1742435370485,2.16911649,2025.6,2025.5,2.15755]
[1742435371289,1.37940649,2025.6,2025.5,2.15755]
[1742435372287,2.16911649,2025.6,2025.5,2.15755]
[1742435372488,0.78975,2025.5,2025.4,0.78977]
[1742435372676,2.17965,2025.5,2025.4,0.78977]
[1742435372874,2.86765,2025.5,2025.4,0.78977]
[1742435373285,0.78979,2025.4,2025.3,1.9531]
[1742435373494,1.3899,2025.4,2025.3,0.78983]
[1742435373687,1.3899,2025.4,2025.3,2.74133]
[1742435374893,0.00740649,2025.6,2025.5,0.78975]
[1742435375191,0.00740649,2025.6,2025.5,3.99755]
[1742435375589,0.00740649,2025.6,2025.5,4.64745]
[1742435375788,0.00740649,2025.6,2025.5,7.97645]
[1742435375994,1.4014,2025.8,2025.7,0.78967]
[1742435376690,1.4014,2025.8,2025.7,1.43777]
[1742435377485,0.00740649,2026.0,2025.9,0.78959]
[1742435378293,0.79695649,2026.0,2025.9,0.78959]
[1742435378494,0.00740649,2026.0,2025.9,0.78959]
[1742435378691,1.34980649,2026.0,2025.9,0.78959]
[1742435378893,1.34980649,2026.0,2025.9,2.09439]
[1742435380193,2.13935649,2026.0,2025.9,2.09439]
[1742435380395,1.34980649,2026.0,2025.9,2.09439]
[1742435380591,1.34980649,2026.0,2025.9,2.75079]
[1742435383798,2.13935649,2026.0,2025.9,2.75079]
[1742435384492,1.34980649,2026.0,2025.9,0.78959]
[1742435384694,1.34980649,2026.0,2025.9,2.09539]
[1742435386797,2.13935649,2026.0,2025.9,2.09539]
[1742435387388,1.34980649,2026.0,2025.9,2.09539]
[1742435388994,0.00740649,2026.0,2025.9,5.42339]
[1742435391195,0.00740649,2026.0,2025.9,8.63119]
[1742435392101,1.3897,2026.2,2026.1,0.78952]
[1742435392393,1.3897,2026.2,2026.1,4.11752]
[1742435392799,1.3897,2026.2,2026.1,4.78012]
[1742435400002,1.3897,2026.2,2025.9,0.00740649]
[1742435400300,1.43534,2026.1,2026.0,0.78955]
[1742435400493,0.6458,2026.1,2026.0,0.78955]
[1742435400896,2.72342,2026.1,2026.0,1.44065]
[1742435401509,1.9339,2026.1,2026.0,1.44065]
[1742435401702,1.2881,2026.1,2026.0,1.44065]
[1742435401907,1.2881,2026.1,2026.0,2.14325]
[1742435402209,1.2881,2026.1,2026.0,3.53925]
[1742435402623,0.00740649,2026.4,2026.3,0.78944]
[1742435402906,1.31840649,2026.4,2026.3,0.78944]
[1742435403300,1.31840649,2026.4,2026.3,2.18544]
[1742435404007,0.78927,2026.8,2026.7,0.78928]
[1742435404311,1.3308,2026.6,2026.5,0.78936]
[1742435404505,1.3308,2026.6,2026.5,2.18696]
[1742435405698,0.65890649,2026.8,2026.7,0.78928]
[1742435405900,1.98970649,2026.8,2026.7,0.78928]
[1742435406098,0.78915,2027.1,2026.9,0.78917]
[1742435406299,1.44065,2027.1,2026.9,0.78917]
[1742435406506,0.6515,2027.1,2026.9,0.78917]
[1742435406708,1.44065,2027.1,2026.9,0.78917]
[1742435407219,0.78917,2027.0,2026.9,0.78917]
[1742435407514,2.19707,2027.0,2026.9,0.78917]
[1742435407705,1.4079,2027.0,2026.9,2.11957]
[1742435408209,2.19707,2027.0,2026.9,2.11957]
[1742435408611,1.4079,2027.0,2026.9,2.11957]
[1742435410716,3.21520649,2027.2,2027.1,0.78913]
[1742435411517,3.21520649,2027.2,2027.1,2.11403]
[1742435412014,3.2078,2027.8,2027.2,1.97266]
[1742435412310,2.86101,2027.7,2027.5,0.78895]
[1742435412517,1.3727,2027.6,2027.5,0.78895]
[1742435413110,2.16163,2027.6,2027.5,1.3249]
[1742435413307,0.78897,2027.5,2027.4,3.2078]
[1742435413508,2.79657,2027.5,2027.4,3.2078]
[1742435415313,2.79657,2027.5,2027.4,3.99681]
[1742435415314,2.0076,2027.5,2027.4,3.99681]
[1742435415617,2.79657,2027.5,2027.4,3.2078]
[1742435415820,2.79657,2027.5,2027.4,3.99681]
[1742435416008,2.79657,2027.5,2027.4,3.2078]
[1742435416210,2.0076,2027.5,2027.4,3.99681]
[1742435416410,1.3288,2027.5,2027.4,3.99681]
[1742435416612,1.3288,2027.5,2027.4,6.04741]
[1742435417918,1.3288,2027.5,2027.4,5.39591]
[1742435418122,1.3288,2027.5,2027.4,3.99681]
[1742435418718,1.3288,2027.5,2027.4,5.39591]
[1742435420122,0.00475437,2027.8,2027.7,0.78889]
[1742435420314,0.00475437,2027.8,2027.7,3.99669]